bitfinex-derivatives/quotes_ETHF0:USTF0_20250929
["timestamp","ask_amount","ask_price","bid_price","bid_amount"]
[1759185774635,1.2656009,4216.4,4216.3,1.17644]
[1759185774837,1.5036009,4216.4,4216.3,1.17644]
[1759185775630,1.2656009,4216.4,4216.3,1.17644]
[1759185775934,1.5036009,4216.4,4216.3,1.17644]
[1759185776333,1.003,4216.4,4216.3,1.17644]
[1759185776836,1.42963,4216.4,4216.3,1.17644]
[1759185777534,0.5553,4216.4,4216.3,1.17644]
[1759185777831,0.7933,4216.4,4216.3,1.17644]
[1759185778039,1.1957,4216.7,4216.6,0.7642]
[1759185778230,1.50765021,4216.7,4216.6,1.19081]
[1759185779226,0.7691,4216.7,4216.6,1.19081]
[1759185779423,1.0071,4216.7,4216.6,1.19081]
[1759185779828,1.26863694,4216.7,4216.6,1.19081]
[1759185780030,1.50663694,4216.7,4216.6,1.19081]
[1759185780231,1.93323694,4216.7,4216.6,1.19081]
[1759185781338,1.4337,4216.7,4216.6,1.19081]
[1759185781632,1.93319439,4216.7,4216.6,1.19081]
[1759185782934,1.4337,4216.7,4216.6,1.19081]
[1759185783134,1.0071,4216.7,4216.6,1.19081]
[1759185786435,1.4337,4216.7,4216.6,1.19081]
[1759185786843,1.0071,4216.7,4216.6,1.19081]
[1759185790446,1.0071,4216.7,4216.6,1.12659179]
[1759185793445,1.4337,4216.7,4216.6,1.12659179]
[1759185795647,1.93325076,4216.7,4216.6,1.12659179]
[1759185797755,1.93325076,4216.7,4216.6,0.69998179]
[1759185797944,1.93325076,4216.7,4216.6,1.12659179]
[1759185799254,1.50665076,4216.7,4216.6,1.12659179]
[1759185799443,1.93325076,4216.7,4216.6,1.12659179]
[1759185799745,1.0071,4216.7,4216.6,1.12659179]
[1759185799954,1.4337,4216.7,4216.6,1.12659179]
[1759185804255,1.93350014,4216.7,4216.6,1.12659179]
[1759185806161,1.93350014,4216.7,4216.6,0.69998179]
[1759185806460,1.93350014,4216.7,4216.6,1.12659179]
[1759185807958,1.93350014,4216.7,4216.6,0.69998179]
[1759185808559,1.93350014,4216.7,4216.6,0.38018179]
[1759185808762,1.93350014,4216.7,4216.6,0.80679179]
[1759185810158,1.93350014,4216.7,4216.6,1.13289179]
[1759185825770,1.93350014,4216.7,4216.6,0.15548179]
[1759185827179,1.93350014,4216.7,4216.6,0.58209179]
[1759185831883,1.69550014,4216.7,4216.6,0.90819179]
[1759185832182,1.50690014,4216.7,4216.6,0.90819179]
[1759185832482,1.93350014,4216.7,4216.6,0.90819179]
[1759185832679,1.69550014,4216.7,4216.6,0.90819179]
[1759185832984,1.93350014,4216.7,4216.6,0.90819179]
[1759185836084,1.93350014,4216.7,4216.6,0.58209179]
[1759185838787,1.93350014,4216.7,4216.6,0.89559179]
[1759185840083,1.69550014,4216.7,4216.6,1.11069179]
[1759185840290,1.93350014,4216.7,4216.6,2.39095183]
[1759185840587,1.93350014,4216.7,4216.6,1.11069179]
[1759185840887,1.50690014,4216.7,4216.6,1.11069179]
[1759185841086,1.50690014,4216.7,4216.6,2.39095183]
[1759185841290,1.93350014,4216.7,4216.6,2.39095183]
[1759185841689,1.50690014,4216.7,4216.6,2.39095183]
[1759185842490,1.93350014,4216.7,4216.6,2.39095183]
[1759185842987,1.69550014,4216.7,4216.6,2.39095183]
[1759185843286,0.2132,4216.7,4216.6,1.11069179]
[1759185843490,0.238,4216.7,4216.6,1.11069179]
[1759185843687,0.5488,4216.7,4216.6,1.11069179]
[1759185845287,0.7522,4216.7,4216.6,1.11069179]
[1759185845890,0.5142,4216.7,4216.6,1.11069179]
[1759185846095,1.15916,4217.1,4217.0,0.7501]
[1759185846295,0.7326,4217.1,4217.0,2.45573124]
[1759185846495,0.9706,4217.1,4217.0,2.45573124]
[1759185847193,0.9706,4217.1,4217.0,1.17667]
[1759185847896,0.5142,4217.1,4217.0,1.30647]
[1759185848089,0.00233837,4217.8,4217.7,0.648]
[1759185848090,0.64722837,4217.8,4217.7,0.648]
[1759185848295,0.9110833,4217.8,4217.7,0.9615]
[1759185848600,1.8863733,4217.8,4217.7,0.9615]
[1759185848894,1.4598833,4217.8,4217.7,0.9615]
[1759185849289,1.39942837,4217.8,4217.7,0.9615]
[1759185849900,1.39942837,4217.8,4217.7,0.648]
[1759185850902,0.7326,4217.6,4217.5,0.535]
[1759185851203,0.9706,4217.6,4217.5,0.535]
[1759185851801,0.9706,4217.6,4217.5,0.2215]
[1759185852002,0.7326,4217.6,4217.5,0.2215]
[1759185852205,0.7326,4217.6,4217.5,0.64802]
[1759185852206,0.9706,4217.6,4217.5,0.64802]
[1759185852406,1.39711,4217.6,4217.5,0.64802]
[1759185852901,1.15911,4217.6,4217.5,0.64802]
[1759185853206,0.9706,4217.6,4217.5,0.64802]
[1759185853405,1.39711,4217.6,4217.5,0.64802]
[1759185854107,0.7326,4217.2,4217.1,0.42656]
[1759185854304,0.42659,4216.8,4216.7,1.27832025]
[1759185854509,0.7533,4216.8,4216.6,0.42661]
[1759185854803,0.4371,4216.6,4216.5,0.42661]
[1759185855305,0.9913,4216.6,4216.5,0.64311]
[1759185855506,0.9913,4216.6,4216.5,0.96751]
[1759185860511,0.9913,4216.6,4216.5,1.17331]
[1759185860716,0.7533,4216.6,4216.5,1.17331]
[1759185860918,0.7686,4216.6,4216.5,1.17331]
[1759185862014,0.5306,4216.6,4216.5,1.17331]
[1759185862213,0.1321,4217.0,4216.9,0.42658]
[1759185862419,0.7232,4217.0,4216.9,1.17328]
[1759185862917,1.0394,4217.0,4216.9,1.17328]
[1759185863618,0.8854,4217.0,4216.9,1.17328]
[1759185863819,0.9913,4217.0,4216.9,1.17328]
[1759185866016,0.7533,4217.0,4216.9,1.17328]
[1759185866210,0.9913,4217.0,4216.9,1.17328]
[1759185868121,0.7533,4217.0,4216.9,1.17328]
[1759185868325,0.9913,4217.0,4216.9,1.17328]
[1759185869021,0.7533,4217.0,4216.9,1.17328]
[1759185869622,1.31352,4217.5,4217.4,0.95923]
[1759185869821,1.55152,4217.5,4217.4,0.95923]
[1759185870222,0.887,4217.5,4217.4,1.18393]
[1759185870421,1.55152,4217.5,4217.4,1.18393]
[1759185871429,1.125,4217.5,4217.4,1.18393]
[1759185871919,0.887,4217.5,4217.4,1.18393]
[1759185872122,1.125,4217.5,4217.4,1.18393]
[1759185873924,0.887,4217.5,4217.4,1.18393]
[1759185874220,0.9929,4217.5,4217.4,1.18393]
[1759185876019,0.7741,4217.5,4217.4,1.18393]
[1759185876719,0.9929,4217.5,4217.4,1.18393]
[1759185876926,1.41942,4217.5,4217.4,1.18393]
[1759185877119,0.9929,4217.5,4217.4,1.18393]
[1759185877727,1.41942,4217.5,4217.4,1.18393]
[1759185880332,0.9929,4217.5,4217.4,1.18393]
[1759185880829,1.41942,4217.5,4217.4,1.18393]
[1759185882530,1.54292,4217.5,4217.4,1.18393]
[1759185884633,1.1164,4217.5,4217.4,1.18393]
[1759185885027,1.54292,4217.5,4217.4,1.18393]
[1759185885228,1.1164,4217.5,4217.4,1.18393]
[1759185885526,0.9929,4217.5,4217.4,1.18393]
[1759185886223,0.7549,4217.5,4217.4,1.18393]
[1759185887739,1.18142,4217.5,4217.4,1.18393]
[1759185887943,0.7549,4217.5,4217.4,1.18393]
[1759185889235,1.18142,4217.5,4217.4,1.18393]
[1759185892335,0.7549,4217.5,4217.4,1.18393]
[1759185892638,0.53843837,4217.8,4217.7,1.1839]
[1759185893039,0.75723837,4217.8,4217.7,1.1839]
[1759185893343,1.18372837,4217.8,4217.7,1.1839]
[1759185894545,0.75723837,4217.8,4217.7,1.1839]
[1759185902162,1.18372837,4217.8,4217.7,0.4353]
[1759185902366,1.17301,4217.6,4217.5,1.27832025]
[1759185902565,1.17301,4217.6,4217.4,1.70484025]
[1759185902760,0.8686,4217.5,4217.4,1.70484025]
[1759185902960,1.29512,4217.5,4217.4,1.70484025]
[1759185903362,0.8686,4217.5,4217.4,1.70484025]
[1759185903559,0.7465,4217.5,4217.4,2.46114025]
[1759185903763,0.543,4217.5,4217.4,1.18282]
[1759185904160,0.7465,4217.5,4217.4,0.63562]
[1759185904460,0.8686,4217.5,4217.4,1.91480874]
[1759185905156,0.8686,4217.5,4217.4,1.18282]
[1759185905354,0.00233837,4217.8,4217.7,0.4265]
[1759185905668,1.08712837,4217.8,4217.7,1.1828]
[1759185905868,1.41332837,4217.8,4217.7,0.8603]
[1759185906060,1.41332837,4217.8,4217.7,0.2091]
[1759185906260,1.17301,4217.6,4217.5,1.27924092]
[1759185906459,1.29512,4217.5,4217.4,1.91487092]
[1759185906759,1.29512,4217.5,4217.4,2.23737092]
[1759185907366,1.29512,4217.5,4217.4,1.27924092]
[1759185907865,1.29512,4217.5,4217.4,1.70577092]
[1759185908259,1.29512,4217.5,4217.4,1.91487092]
[1759185908666,1.29512,4217.5,4217.4,2.23737092]
[1759185908866,0.543,4217.5,4217.4,2.46207092]
[1759185909165,0.781,4217.5,4217.4,1.18283]
[1759185909370,1.20752,4217.5,4217.4,1.18283]
[1759185909569,0.781,4217.5,4217.4,1.18283]
[1759185909964,0.00233837,4217.8,4217.4,0.7563]
[1759185910170,0.97182837,4217.8,4217.7,1.1828]
[1759185910466,1.17532837,4217.8,4217.7,1.1828]
[1759185910667,1.41332837,4217.8,4217.7,1.1828]
[1759185914773,0.98683837,4217.8,4217.7,1.1828]
[1759185915474,0.74883837,4217.8,4217.7,1.1828]
[1759185915677,0.98683837,4217.8,4217.7,1.1828]
[1759185920781,1.41332837,4217.8,4217.7,1.1828]
[1759185921183,1.1696,4217.7,4217.6,0.42651]
[1759185921481,0.7431,4217.7,4217.6,0.42651]
[1759185921680,0.9811,4217.7,4217.6,0.42651]
[1759185921880,1.4076,4217.7,4217.6,0.64911]
[1759185922279,0.9811,4217.7,4217.6,0.64911]
[1759185922480,0.9811,4217.7,4217.6,0.95371]
[1759185923282,0.9811,4217.7,4217.6,1.17671]
[1759185923676,1.4076,4217.7,4217.6,0.64911]
[1759185923877,1.4076,4217.7,4217.6,0.42651]
[1759185924078,1.4076,4217.7,4217.6,0.64911]
[1759185924371,1.4076,4217.7,4217.6,0.96751]
[1759185924975,1.4076,4217.7,4217.6,0.64911]
[1759185925382,0.85161,4217.6,4217.5,1.70568971]
[1759185925582,1.16021,4217.6,4217.5,1.70568971]
[1759185925775,1.16021,4217.6,4217.5,1.92498971]
[1759185926485,1.16021,4217.6,4217.5,1.49847971]
[1759185926685,1.16021,4217.6,4217.5,1.92499971]
[1759185927790,1.16021,4217.6,4217.5,2.24339971]
[1759185929188,1.16021,4217.6,4217.5,0.42652]
[1759185929987,1.29302,4217.5,4217.4,1.70569971]
[1759185930483,1.29302,4217.5,4217.4,1.92499971]
[1759185930686,0.7337,4217.5,4217.4,1.16742]
[1759185931387,0.42882837,4217.8,4217.7,0.4265]
[1759185931585,1.16021,4217.7,4217.6,2.02028991]
[1759185932189,1.16021,4217.7,4217.6,2.12839991]
[1759185932387,0.42651,4217.6,4217.5,1.27938991]
[1759185932594,1.29302,4217.5,4217.4,1.27938991]
[1759185932992,1.16023,4217.4,4217.3,1.27938991]
[1759185933895,0.42656,4217.1,4217.0,1.27938991]
[1759185934191,0.8665,4217.0,4216.8,1.27938991]
[1759185934494,1.16028,4216.9,4216.8,1.49868991]
[1759185934992,1.16028,4216.9,4216.8,1.81708991]
[1759185936396,1.16028,4216.9,4216.8,0.5377]
[1759185937892,1.16028,4216.9,4216.8,0.96429]
[1759185940897,1.16028,4216.9,4216.8,1.16749]
[1759185944107,0.7337,4216.9,4216.8,1.16749]
[1759185944310,1.16028,4216.9,4216.8,1.16749]
[1759185948213,1.16028,4216.9,4216.8,0.78723861]
[1759185949507,1.16028,4216.9,4216.8,0.58403861]
[1759185950010,0.7337,4216.7,4216.6,1.16751]
[1759185950209,1.1603,4216.7,4216.6,1.16751]
[1759185950711,1.1603,4216.7,4216.6,0.7409]
[1759185951210,1.1603,4216.7,4216.6,1.16751]
[1759185953412,1.3983,4216.7,4216.6,1.16751]
[1759185954814,0.9717,4216.7,4216.6,1.16751]
[1759185961419,0.7337,4216.7,4216.6,1.16751]
[1759185961718,0.9717,4216.7,4216.6,1.16751]
[1759185963512,0.7337,4216.7,4216.6,1.16751]
[1759185963713,0.9717,4216.7,4216.6,1.16751]
[1759185966024,0.7337,4216.7,4216.6,1.16751]
[1759185966212,0.1328,4217.0,4216.9,0.42658]
[1759185966415,0.4945435,4217.0,4216.9,1.19538]
[1759185966931,1.1672,4217.7,4217.6,1.1953]
[1759185967127,1.47329491,4217.7,4217.6,1.1953]
[1759185967422,1.89976491,4217.7,4217.6,1.1953]
[1759185967619,1.89976491,4217.7,4217.6,0.7688]
[1759185968527,1.89976491,4217.7,4217.6,1.19528]
[1759185970919,1.47329491,4217.7,4217.6,1.19528]
[1759185971926,1.01479491,4217.7,4217.6,1.19528]
[1759185972127,0.00233837,4217.8,4217.7,0.42648]
[1759185972327,0.00233837,4217.8,4217.7,1.19528]
[1759185972532,0.24033837,4217.8,4217.7,1.19528]
[1759185974330,0.00233837,4217.8,4217.7,1.19528]
[1759185974635,0.24033837,4217.8,4217.7,1.19528]
[1759185975335,0.55023837,4217.8,4217.7,1.20248]
[1759185975633,0.75483837,4217.8,4217.7,1.20248]
[1759185976434,0.24033837,4217.8,4217.7,1.20248]
[1759185976937,0.00233837,4217.8,4217.7,1.20248]
[1759185978728,0.31223837,4217.8,4217.7,1.20248]
[1759185981527,0.00233837,4217.8,4217.7,1.20248]
[1759185982126,34.141,4219.2,4217.7,0.776]
[1759185982330,34.141,4219.2,4218.8,0.96097]
[1759185982331,1.40147,4218.9,4218.8,0.96097]
[1759185982527,1.40147,4218.9,4218.8,1.18257]
[1759185982727,0.7371,4218.9,4218.8,1.18257]
[1759185982926,0.9751,4218.9,4218.8,1.18257]
[1759185983338,1.40392209,4218.9,4218.8,1.18423865]
[1759185984030,0.97756209,4218.9,4218.8,1.18423865]
[1759185984234,0.73956209,4218.9,4218.8,1.18423865]
[1759185984631,0.97756209,4218.9,4218.8,1.18423865]
[1759185985138,0.97756209,4218.9,4218.8,0.75786865]
[1759185985639,1.40392209,4218.9,4218.8,0.75786865]
[1759185985835,0.96132209,4218.9,4218.8,0.75786865]
[1759185986038,0.55036209,4218.9,4218.8,0.75786865]
[1759185986238,0.97672209,4218.9,4218.8,0.75786865]
[1759185986440,1.18742209,4218.9,4218.8,0.75786865]
[1759185987227,1.39792209,4218.9,4218.8,0.75786865]
[1759185988636,1.39792209,4218.9,4218.8,1.18423865]
[1759185989143,1.15992209,4218.9,4218.8,1.18423865]
[1759185989342,1.39792209,4218.9,4218.8,1.18423865]
[1759185989642,0.00246209,4218.9,4218.8,1.18423865]
[1759185990834,0.00246209,4218.9,4218.8,6.18423865]
[1759185991032,1.15197,4219.8,4219.7,0.7414]
[1759185991241,1.38997,4219.8,4219.7,0.7414]
[1759185991636,1.38997,4219.8,4219.7,1.16768]
[1759185992035,1.39212395,4219.8,4219.7,1.16768]
[1759185992842,1.15412395,4219.8,4219.7,1.16768]
[1759185993042,0.96585395,4219.8,4219.7,1.16768]
[1759185993242,1.39212395,4219.8,4219.7,1.16768]
[1759185996043,0.94362395,4219.8,4219.7,1.16768]
[1759185996241,1.18162395,4219.8,4219.7,1.16768]
[1759185996441,1.39212395,4219.8,4219.7,0.7414]
[1759185997443,1.39212395,4219.8,4219.7,1.16768]
[1759185999845,1.39212395,4219.8,4219.7,0.7414]
[1759186000653,1.39212395,4219.8,4219.7,1.16768]
[1759186001851,0.96585395,4219.8,4219.7,1.16768]
[1759186002151,0.72785395,4219.8,4219.7,1.16768]
[1759186002348,0.96585395,4219.8,4219.7,1.16768]
[1759186002845,0.72785395,4219.8,4219.7,1.16768]
[1759186003050,0.96585395,4219.8,4219.7,1.16768]
[1759186003450,0.72785395,4219.8,4219.7,1.16768]
[1759186003651,0.96585395,4219.8,4219.7,1.16768]
[1759186004151,1.39212395,4219.8,4219.7,1.16768]
[1759186004749,0.72785395,4219.8,4219.7,1.16768]
[1759186004957,0.00215395,4219.8,4219.7,1.16768]
[1759186006943,0.3045,4220.4,4220.3,0.86052]
[1759186007143,0.7257,4220.9,4220.8,0.64027]
[1759186007348,0.7257,4220.9,4220.8,1.16757]
[1759186007547,0.9637,4220.9,4220.8,1.16757]
[1759186007957,0.72827039,4220.9,4220.8,1.16757]
[1759186008152,0.96627039,4220.9,4220.8,1.16757]
[1759186008757,1.39243039,4220.9,4220.8,1.16757]
[1759186010053,1.39243039,4220.9,4220.1,1.06561]
[1759186010054,0.7257,4220.7,4220.6,0.64028]
[1759186010959,1.15189,4220.7,4220.6,0.94738]
[1759186011161,1.15189,4220.7,4220.6,1.16758]
[1759186013757,1.15189,4220.7,4220.1,1.06561]
[1759186013758,0.2107,4220.2,4220.1,0.2141]
[1759186013962,0.5152,4220.2,4220.1,0.7414]
[1759186014365,0.5152,4220.2,4220.1,1.16765]
[1759186017061,0.3045,4220.2,4220.1,1.16765]
[1759186020458,0.5118,4220.2,4220.1,1.16765]
[1759186022154,0.1346,4220.5,4220.4,0.42622]
[1759186022465,0.63603039,4220.9,4220.8,1.18977]
[1759186022661,0.94213039,4220.9,4220.8,1.18977]
[1759186023265,1.16403039,4220.9,4220.8,1.18977]
[1759186023968,1.16403039,4220.9,4220.8,0.7636]
[1759186025257,1.28351,4220.5,4220.4,0.2127]
[1759186025564,1.28351,4220.5,4220.4,0.63892]
[1759186025761,0.4292,4220.2,4219.9,1.27326026]
[1759186025962,0.8573,4220.0,4219.9,0.42627]
[1759186026169,1.28356,4220.0,4219.9,0.42627]
[1759186026465,1.28356,4220.0,4219.9,0.63897]
[1759186028464,0.7353,4220.0,4219.9,1.18987]
[1759186028670,0.5134,4220.0,4219.9,1.18987]
[1759186029162,0.85542,4220.4,4220.3,0.85952]
[1759186029375,1.39952,4220.4,4220.3,1.18982]
[1759186029871,1.39952,4220.4,4220.3,0.85952]
[1759186031367,1.16152,4220.4,4220.3,1.18982]
[1759186031666,0.7353,4220.4,4220.3,1.18982]
[1759186034677,1.16152,4220.4,4220.3,1.18982]
[1759186035174,1.16152,4220.4,4220.3,1.18983]
[1759186036273,1.16152,4220.4,4220.3,0.42623]
[1759186036779,1.16152,4220.4,4220.3,0.63583]
[1759186037076,0.7353,4220.4,4220.3,1.16413]
[1759186037578,1.16152,4220.4,4220.3,1.16413]
[1759186037983,0.5134,4220.4,4220.3,1.16413]
[1759186039076,0.5134,4220.4,4220.3,2.43739026]
[1759186039380,0.5134,4220.4,4220.3,1.16413]
[1759186042278,0.9785,4220.8,4220.7,0.85049]
[1759186042473,0.9785,4220.8,4220.7,1.16409]
[1759186042874,1.40468,4220.8,4220.7,1.16409]
[1759186043083,1.40468,4220.8,4220.7,0.85049]
[1759186043879,0.9785,4220.8,4220.7,0.85049]
[1759186045587,1.40468,4220.8,4220.7,0.85049]
[1759186045784,0.7405,4220.8,4220.7,0.85049]
[1759186045984,0.7405,4220.8,4220.7,1.15739]
[1759186046181,0.9785,4220.8,4220.7,1.15739]
[1759186046888,0.7405,4220.8,4220.7,1.15739]
[1759186047188,0.9785,4220.8,4220.7,1.15739]
[1759186048185,0.7405,4220.8,4220.7,1.15739]
[1759186048486,0.5319,4220.8,4220.7,1.15739]
[1759186055296,0.95808,4220.8,4220.7,1.15739]
[1759186055596,0.5319,4220.8,4220.7,1.15739]
[1759186056091,0.3209,4220.8,4220.7,1.15739]
[1759186056294,0.00257039,4220.9,4220.8,1.17508]
[1759186063391,0.42613,4221.3,4220.8,1.17508]
[1759186063591,0.5354,4222.1,4222.0,1.17496]
[1759186064500,0.5377493,4222.1,4222.0,1.17763492]
[1759186064697,6.1859993,4222.1,4222.0,0.00267492]
[1759186064898,6.67660085,4222.1,4222.0,0.00267492]
[1759186065603,6.91460085,4222.1,4222.0,0.00267492]
[1759186065804,6.67660085,4222.1,4222.0,0.00267492]
[1759186066101,6.91460085,4222.1,4222.0,0.00267492]
[1759186066299,6.91444531,4222.1,4222.0,0.00267492]
[1759186072822,6.67644531,4222.1,4222.0,0.00267492]
[1759186073024,1.1859993,4222.1,4222.0,0.22437492]
[1759186073328,1.4239993,4222.1,4222.0,0.22437492]
[1759186073529,1.4239993,4222.1,4222.0,0.53127492]
[1759186073828,1.4239993,4222.1,4222.0,0.95733492]
[1759186074023,1.4239993,4222.1,4222.0,0.53127492]
[1759186074228,1.4239993,4222.1,4222.0,0.22437492]
[1759186074623,1.4239993,4222.1,4222.0,0.00267492]
[1759186075731,1.4239993,4222.1,4222.0,0.94793492]
[1759186076030,1.4239993,4222.1,4222.0,0.52187492]
[1759186076433,1.4239993,4222.1,4222.0,0.20647492]
[1759186076732,1.4239993,4222.1,4222.0,0.00267492]
[1759186077228,1.1859993,4222.1,4222.0,0.00267492]
[1759186077433,1.4239993,4222.1,4222.0,0.00267492]
[1759186081531,1.91477081,4222.1,4222.0,0.00267492]
[1759186083040,1.67677081,4222.1,4222.0,0.94793492]
[1759186083239,1.4239993,4222.1,4222.0,1.17303492]
[1759186083439,1.4239993,4222.1,4222.0,0.74697492]
[1759186083640,1.4239993,4222.1,4222.0,1.17303492]
[1759186083840,1.4239993,4222.1,4222.0,0.74697492]
[1759186084140,0.7599493,4222.1,4222.0,1.17303492]
[1759186084331,0.5377493,4222.1,4222.0,1.17303492]
[1759186084532,0.9637993,4222.1,4222.0,1.17303492]
[1759186084939,1.1667993,4222.1,4222.0,0.85763492]
[1759186085337,1.1667993,4222.1,4222.0,1.17303492]
[1759186085845,0.7407493,4222.1,4222.0,1.17303492]
[1759186086346,0.5377493,4222.1,4222.0,1.17303492]
[1759186091750,0.0023493,4222.1,4222.0,2.57141617]
[1759186091952,0.3357493,4222.1,4222.0,6.29573492]
[1759186092139,0.0023493,4222.1,4222.0,6.29573492]
[1759186093045,0.3357493,4222.1,4222.0,6.29573492]
[1759186093647,0.0023493,4222.1,4222.0,6.29573492]
[1759186096544,0.00891281,4222.2,4222.0,6.29573492]
[1759186096545,0.00891281,4222.2,4222.1,0.73475]
[1759186096751,0.00891281,4222.2,4222.1,1.16755]
[1759186097051,0.3334,4222.9,4222.8,0.7415]
[1759186097350,0.551,4222.9,4222.8,0.7415]
[1759186097553,0.55326577,4222.9,4222.8,1.16747]
[1759186100456,0.02426577,4222.9,4222.8,1.16747]
[1759186101053,0.55326577,4222.9,4222.8,2.44308034]
[1759186101453,0.76806577,4222.9,4222.8,1.16747]
[1759186101660,0.76806577,4222.9,4222.8,0.42597]
[1759186101860,1.19402577,4222.9,4222.8,0.42597]
[1759186103364,0.426,4222.6,4222.5,1.27561034]
[1759186103665,1.16984,4222.2,4222.1,0.42604]
[1759186104764,0.7416,4222.1,4222.0,0.00267492]
[1759186104961,0.7416,4222.1,4222.0,0.63703492]
[1759186105861,0.7416,4222.1,4222.0,0.94513492]
[1759186106961,0.7416,4222.1,4222.0,0.63703492]
[1759186107163,1.16765,4222.1,4222.0,0.63703492]
[1759186107367,0.7416,4222.1,4222.0,0.63703492]
[1759186108370,1.16765,4222.1,4222.0,0.63703492]
[1759186108570,1.16765,4222.1,4222.0,0.00267492]
[1759186108772,0.7416,4222.1,4222.0,0.42873492]
[1759186109672,0.7416,4222.1,4222.0,0.63703492]
[1759186109863,0.7416,4222.1,4222.0,1.15033492]
[1759186111072,1.16765,4222.1,4222.0,1.15033492]
[1759186111272,1.16765,4222.1,4222.0,0.84223492]
[1759186111474,0.7416,4222.1,4222.0,2.11784526]
[1759186112075,0.7416,4222.1,4222.0,2.42594526]
[1759186114574,0.1238,4222.5,4222.4,0.83952]
[1759186114575,0.75811,4222.5,4222.4,0.83952]
[1759186114776,0.5459,4222.5,4222.4,1.14762]
[1759186115178,0.8654,4222.5,4222.4,1.14762]
[1759186116670,0.7416,4222.5,4222.4,1.14762]
[1759186116869,0.76586577,4222.9,4222.8,0.83947]
[1759186117070,1.00386577,4222.9,4222.8,1.14757]
[1759186117270,1.42982577,4222.9,4222.8,1.14757]
[1759186118082,1.42982577,4222.9,4222.8,0.4135]
[1759186118283,1.42982577,4222.9,4222.8,0.83947]
[1759186119881,1.00386577,4222.9,4222.8,0.83947]
[1759186121889,1.49812033,4222.9,4222.8,0.42597]
[1759186122690,1.49812033,4222.9,4222.8,0.63427]
[1759186125489,1.92408033,4222.9,4222.8,0.63427]
[1759186125685,1.26012033,4222.9,4222.8,0.63427]
[1759186125883,1.49812033,4222.9,4222.8,0.63427]
[1759186126290,1.92408033,4222.9,4222.8,0.63427]
[1759186127391,1.00386577,4222.9,4222.8,1.14757]
[1759186128692,1.42982577,4222.9,4222.8,1.14757]
[1759186129582,1.00386577,4222.9,4222.8,1.14757]
[1759186129983,1.42982577,4222.9,4222.8,1.14757]
[1759186130186,1.42982577,4222.9,4222.8,0.63427]
[1759186130384,1.42982577,4222.9,4222.8,0.42597]
[1759186131294,1.68606597,4222.9,4222.8,0.42597]
[1759186131494,1.92406597,4222.9,4222.8,0.42597]
[1759186131895,1.16759,4222.8,4222.7,0.42598]
[1759186132294,1.16759,4222.8,4222.7,0.94238]
[1759186132295,0.7416,4222.8,4222.7,0.94238]
[1759186132896,0.7416,4222.8,4222.7,1.14758]
[1759186135195,1.16757,4222.8,4222.7,1.14758]
[1759186135493,0.5333,4222.8,4222.7,1.14758]
[1759186135696,0.22936577,4222.9,4222.8,0.98707]
[1759186135896,0.45316577,4222.9,4222.8,1.20387]
[1759186136200,0.77286577,4222.9,4222.8,1.20387]
[1759186136401,0.77286577,4222.9,4222.8,2.48079409]
[1759186139493,0.64977,4222.8,4222.7,1.27692409]
[1759186139696,1.41257,4222.8,4222.7,0.42599]
[1759186142007,1.41257,4222.8,4222.7,0.98709]
[1759186142206,1.41257,4222.8,4222.7,0.65029]
[1759186142701,1.17457,4222.8,4222.7,0.65029]
[1759186142903,1.41257,4222.8,4222.7,0.65029]
[1759186144107,0.9866,4222.8,4222.7,1.20389]
[1759186144299,0.5435,4222.8,4222.7,1.20389]
[1759186144498,0.02426577,4222.9,4222.8,0.42597]
[1759186144702,0.02426577,4222.9,4222.8,2.48079409]
[1759186145007,0.02426577,4222.9,4222.8,1.20387]
[1759186152103,0.1252,4223.5,4223.4,0.42591]
[1759186152104,0.6687,4223.5,4223.4,0.42591]
[1759186152406,0.2238,4223.8,4223.7,1.20378]
[1759186152606,0.7180236,4223.8,4223.7,1.20378]
[1759186152796,1.0377236,4223.8,4223.7,1.20378]
[1759186152996,0.238,4224.0,4223.9,0.2168]
[1759186153303,0.81657829,4224.0,4223.9,1.20376]
[1759186153602,1.05457829,4224.0,4223.9,1.20376]
[1759186153805,1.27837829,4224.0,4223.9,1.20376]
[1759186154205,0.54620576,4224.0,4223.9,1.20376]
[1759186154402,0.78420576,4224.0,4223.9,1.20376]
[1759186154602,0.00270576,4224.0,4223.9,1.20376]
[1759186156914,0.51610576,4224.0,4223.9,1.20376]
[1759186157308,0.73470576,4224.0,4223.9,1.20376]
[1759186158208,0.51610576,4224.0,4223.9,1.20376]
[1759186168621,0.30980576,4224.0,4223.9,1.20376]
[1759186168917,0.00270576,4224.0,4223.9,1.20376]
[1759186174723,0.00270576,4224.0,4223.9,2.47980474]
[1759186175025,0.86860576,4224.0,4223.9,0.2243]
[1759186175222,0.6353,4223.6,4223.5,0.2222]
[1759186175430,0.7379,4223.6,4223.5,0.64811]
[1759186175917,1.1638,4223.6,4223.5,0.2222]
[1759186176320,0.7379,4223.6,4223.5,0.64811]
[1759186176615,0.74088,4223.8,4223.7,1.20219]
[1759186177324,0.95028,4223.8,4223.7,1.20219]
[1759186177716,1.16378,4223.8,4223.7,1.20219]
[1759186178316,1.16378,4223.8,4223.7,0.7763]
[1759186178515,1.16378,4223.8,4223.7,0.4461]
[1759186179021,1.16378,4223.8,4223.7,0.87199]
[1759186179327,1.16378,4223.8,4223.7,0.2222]
[1759186179525,1.16378,4223.8,4223.7,0.64809]
[1759186179828,1.16378,4223.8,4223.7,0.2222]
[1759186180827,1.16378,4223.8,4223.6,0.4259]
[1759186180828,0.8488,4223.6,4223.5,1.27604474]
[1759186181014,1.29181,4223.5,4223.4,1.92415474]
[1759186181216,1.29181,4223.5,4223.4,2.25435474]
[1759186181426,1.29181,4223.5,4223.4,2.47825474]
[1759186182221,0.8659,4223.5,4223.4,1.20221]
[1759186182426,0.7379,4223.5,4223.4,1.20221]
[1759186182627,0.5244,4223.5,4223.4,1.20221]
[1759186184827,1.16381,4223.5,4223.4,1.20221]
[1759186185228,0.7379,4223.5,4223.4,1.20221]
[1759186189631,1.16381,4223.5,4223.4,1.20221]